[Event "*** SCC Grand Prix: Titled Tuesday Blitz"]
[Site "Chess.com"]
[Date "2020.07.21"]
[Round "9"]
[White "Supernotar"]
[Black "skiff134"]
[Result "0-1"]
[WhiteElo "2707"]
[BlackElo "2622"]
[TimeControl "180+1"]
[EndTime "11:50:16 PDT"]
[Termination "skiff134 won by checkmate"]

1. d4 {[%clk 0:03:00.9]} 1... d5 {[%clk 0:02:59.5]} 2. c4 {[%clk 0:02:59.5]}
2... e6 {[%clk 0:02:59.8]} 3. Nf3 {[%clk 0:02:59.3]} 3... c5 {[%clk 0:02:59]} 4.
e3 {[%clk 0:02:58.3]} 4... Nc6 {[%clk 0:02:58.4]} 5. dxc5 {[%clk 0:02:58.1]}
5... Bxc5 {[%clk 0:02:57.8]} 6. a3 {[%clk 0:02:58.3]} 6... a6 {[%clk 0:02:56.1]}
7. b4 {[%clk 0:02:58.1]} 7... Ba7 {[%clk 0:02:56]} 8. Bb2 {[%clk 0:02:58.6]}
8... Nf6 {[%clk 0:02:56.1]} 9. Nbd2 {[%clk 0:02:57.9]} 9... O-O {[%clk 0:02:56]}
10. Be2 {[%clk 0:02:58.3]} 10... Qe7 {[%clk 0:02:49.2]} 11. O-O {[%clk
0:02:56.6]} 11... Rd8 {[%clk 0:02:48.7]} 12. Qc2 {[%clk 0:02:56]} 12... e5
{[%clk 0:02:36.3]} 13. cxd5 {[%clk 0:02:51.2]} 13... Nxd5 {[%clk 0:02:35.4]} 14.
Nc4 {[%clk 0:02:32.7]} 14... e4 {[%clk 0:02:17]} 15. Nfd2 {[%clk 0:02:28.4]}
15... Bf5 {[%clk 0:02:16.9]} 16. Rac1 {[%clk 0:02:20.1]} 16... Rac8 {[%clk
0:02:16.5]} 17. Qb3 {[%clk 0:02:08]} 17... Qg5 {[%clk 0:02:16]} 18. Rfd1 {[%clk
0:02:02.6]} 18... b5 {[%clk 0:01:44.8]} 19. Na5 {[%clk 0:02:02.3]} 19... Nxa5
{[%clk 0:01:33.9]} 20. bxa5 {[%clk 0:02:03.2]} 20... Nxe3 {[%clk 0:01:20.9]} 21.
fxe3 {[%clk 0:02:01.8]} 21... Bxe3+ {[%clk 0:01:20.9]} 22. Kh1 {[%clk
0:02:01.7]} 22... Bxd2 {[%clk 0:01:19.5]} 23. Rxc8 {[%clk 0:01:57.3]} 23... Rxc8
{[%clk 0:01:19.4]} 24. Qd5 {[%clk 0:01:50.9]} 24... Rd8 {[%clk 0:01:05.3]} 25.
Qc6 {[%clk 0:01:24.9]} 25... Qg6 {[%clk 0:00:52.9]} 26. Rxd2 {[%clk 0:01:16.2]}
26... Rf8 {[%clk 0:00:35.9]} 27. Rd6 {[%clk 0:01:03.4]} 27... Qg5 {[%clk
0:00:32.2]} 28. Qxa6 {[%clk 0:00:58.8]} 28... Qe3 {[%clk 0:00:25.3]} 29. Qxb5
{[%clk 0:00:53.8]} 29... Bg4 {[%clk 0:00:25.6]} 30. Bf1 {[%clk 0:00:43]} 30...
Qf2 {[%clk 0:00:25.2]} 31. h3 {[%clk 0:00:26.9]} 31... e3 {[%clk 0:00:22.1]} 32.
a6 {[%clk 0:00:09.5]} 32... e2 {[%clk 0:00:09.7]} 33. Bxe2 {[%clk 0:00:09.9]}
33... Bxe2 {[%clk 0:00:10]} 34. Qb6 {[%clk 0:00:06.9]} 34... Qf1+ {[%clk
0:00:08.5]} 35. Qg1 {[%clk 0:00:06.2]} 35... Bxa6 {[%clk 0:00:08.7]} 36. Qxf1
{[%clk 0:00:06]} 36... Bxf1 {[%clk 0:00:09.6]} 37. a4 {[%clk 0:00:06.2]} 37...
Ra8 {[%clk 0:00:07.9]} 38. a5 {[%clk 0:00:06.1]} 38... f6 {[%clk 0:00:06.5]} 39.
Bc3 {[%clk 0:00:06.3]} 39... Ba6 {[%clk 0:00:06.1]} 40. Kh2 {[%clk 0:00:06]}
40... Bb7 {[%clk 0:00:05.9]} 41. Rb6 {[%clk 0:00:05.8]} 41... Ba6 {[%clk
0:00:05.6]} 42. Bd4 {[%clk 0:00:06]} 42... Kf7 {[%clk 0:00:05.6]} 43. Rc6 {[%clk
0:00:05.1]} 43... h5 {[%clk 0:00:05.5]} 44. Rc7+ {[%clk 0:00:05.3]} 44... Kg6
{[%clk 0:00:06.1]} 45. h4 {[%clk 0:00:05.8]} 45... Bb5 {[%clk 0:00:06.4]} 46.
Bb6 {[%clk 0:00:05.9]} 46... Ba6 {[%clk 0:00:06.5]} 47. Rc5 {[%clk 0:00:06]}
47... Rc8 {[%clk 0:00:06.2]} 48. Rd5 {[%clk 0:00:05]} 48... Rc2 {[%clk
0:00:06.5]} 49. Rd4 {[%clk 0:00:04.6]} 49... Bb7 {[%clk 0:00:06.2]} 50. Kh3
{[%clk 0:00:02.9]} 50... Bxg2+ {[%clk 0:00:04.8]} 51. Kg3 {[%clk 0:00:02.7]}
51... Bb7 {[%clk 0:00:05.5]} 52. Rd7 {[%clk 0:00:02.6]} 52... Ba6 {[%clk
0:00:05.1]} 53. Kf3 {[%clk 0:00:02.7]} 53... Ra2 {[%clk 0:00:04.6]} 54. Rd4
{[%clk 0:00:02.3]} 54... Be2+ {[%clk 0:00:05.2]} 55. Ke3 {[%clk 0:00:02.1]}
55... Ba6 {[%clk 0:00:06.1]} 56. Kf4 {[%clk 0:00:02.4]} 56... Kh6 {[%clk
0:00:06]} 57. Rd1 {[%clk 0:00:01.8]} 57... g5+ {[%clk 0:00:05]} 58. hxg5+ {[%clk
0:00:01.4]} 58... fxg5+ {[%clk 0:00:05.9]} 59. Ke5 {[%clk 0:00:02.1]} 59... h4
{[%clk 0:00:06.5]} 60. Rf1 {[%clk 0:00:02.5]} 60... Kh5 {[%clk 0:00:06.7]} 61.
Rf6 {[%clk 0:00:03.4]} 61... h3 {[%clk 0:00:06.8]} 62. Kd6 {[%clk 0:00:04.2]}
62... Kg4 {[%clk 0:00:06.4]} 63. Rf8 {[%clk 0:00:05.1]} 63... h2 {[%clk
0:00:06.7]} 64. Rh8 {[%clk 0:00:05]} 64... Bb7 {[%clk 0:00:07.2]} 65. Kc7 {[%clk
0:00:05]} 65... h1=Q {[%clk 0:00:07.2]} 66. Rxh1 {[%clk 0:00:04.9]} 66... Bxh1
{[%clk 0:00:08.1]} 67. Kb8 {[%clk 0:00:05.5]} 67... Kf5 {[%clk 0:00:08.6]} 68.
Ka7 {[%clk 0:00:05.7]} 68... Bc6 {[%clk 0:00:08.9]} 69. a6 {[%clk 0:00:05.5]}
69... Bb5 {[%clk 0:00:09.5]} 70. Kb7 {[%clk 0:00:05.8]} 70... Rxa6 {[%clk
0:00:09.2]} 71. Kc7 {[%clk 0:00:06.7]} 71... Rxb6 {[%clk 0:00:09.1]} 72. Kxb6
{[%clk 0:00:07.3]} 72... g4 {[%clk 0:00:10]} 73. Kxb5 {[%clk 0:00:08.2]} 73...
g3 {[%clk 0:00:10.9]} 74. Kc4 {[%clk 0:00:09.1]} 74... g2 {[%clk 0:00:11.7]} 75.
Kd3 {[%clk 0:00:10]} 75... g1=Q {[%clk 0:00:12.1]} 76. Kc4 {[%clk 0:00:09.9]}
76... Ke4 {[%clk 0:00:11.9]} 77. Kb5 {[%clk 0:00:09.9]} 77... Qc1 {[%clk
0:00:11.9]} 78. Ka6 {[%clk 0:00:10.2]} 78... Qb1 {[%clk 0:00:10.6]} 79. Ka7
{[%clk 0:00:10.8]} 79... Kd5 {[%clk 0:00:10.9]} 80. Ka8 {[%clk 0:00:11.7]} 80...
Kc6 {[%clk 0:00:11.2]} 81. Ka7 {[%clk 0:00:12.6]} 81... Qb7# {[%clk 0:00:11.6]}
0-1

[Event "*** SCC Grand Prix: Titled Tuesday Blitz"]
[Site "Chess.com"]
[Date "2020.07.21"]
[Round "9"]
[White "ShimanovAlex"]
[Black "Micki-taryan"]
[Result "0-1"]
[WhiteElo "2831"]
[BlackElo "3053"]
[TimeControl "180+1"]
[EndTime "11:50:34 PDT"]
[Termination "Micki-taryan won on time"]

1. d4 {[%clk 0:03:00.9]} 1... e6 {[%clk 0:02:59.6]} 2. Nf3 {[%clk 0:03:00.4]}
2... Nf6 {[%clk 0:02:59.2]} 3. Bf4 {[%clk 0:02:58.7]} 3... b6 {[%clk 0:02:59.1]}
4. e3 {[%clk 0:02:57.9]} 4... Bb7 {[%clk 0:02:59.7]} 5. Nbd2 {[%clk 0:02:57.7]}
5... Bd6 {[%clk 0:03:00.2]} 6. Bg3 {[%clk 0:02:56.4]} 6... Nc6 {[%clk
0:02:59.4]} 7. Bd3 {[%clk 0:02:55.7]} 7... Bxg3 {[%clk 0:02:54.8]} 8. hxg3
{[%clk 0:02:55.3]} 8... d6 {[%clk 0:02:55.4]} 9. c3 {[%clk 0:02:54.3]} 9... Qe7
{[%clk 0:02:49.2]} 10. a4 {[%clk 0:02:51.9]} 10... a6 {[%clk 0:02:49]} 11. Qe2
{[%clk 0:02:50.1]} 11... e5 {[%clk 0:02:47.8]} 12. dxe5 {[%clk 0:02:49.3]} 12...
Nxe5 {[%clk 0:02:45.5]} 13. Nxe5 {[%clk 0:02:48.3]} 13... Qxe5 {[%clk 0:02:43]}
14. Nf3 {[%clk 0:02:48]} 14... Qe7 {[%clk 0:02:42]} 15. Rh4 {[%clk 0:02:27.9]}
15... a5 {[%clk 0:02:26.4]} 16. Bb5+ {[%clk 0:02:26.4]} 16... Kf8 {[%clk
0:02:25.4]} 17. Kf1 {[%clk 0:02:24.1]} 17... g6 {[%clk 0:02:22.7]} 18. Nd4
{[%clk 0:02:19.3]} 18... Kg7 {[%clk 0:02:20]} 19. Bc6 {[%clk 0:02:10.1]} 19...
Ba6 {[%clk 0:02:16.4]} 20. Bb5 {[%clk 0:02:09.8]} 20... Bb7 {[%clk 0:02:14.2]}
21. Bc6 {[%clk 0:02:09.8]} 21... Bxc6 {[%clk 0:02:14.3]} 22. Nxc6 {[%clk
0:02:10.7]} 22... Qd7 {[%clk 0:02:10.7]} 23. Qb5 {[%clk 0:02:09.3]} 23... Rae8
{[%clk 0:01:58.3]} 24. Rd1 {[%clk 0:02:07.1]} 24... h5 {[%clk 0:01:54.3]} 25.
Nd4 {[%clk 0:01:57.7]} 25... Qc8 {[%clk 0:01:54.1]} 26. Rf4 {[%clk 0:01:50.7]}
26... Ng4 {[%clk 0:01:49]} 27. Nc6 {[%clk 0:01:43.2]} 27... h4 {[%clk
0:01:41.8]} 28. Qd5 {[%clk 0:01:26.5]} 28... f6 {[%clk 0:01:34.2]} 29. gxh4
{[%clk 0:01:07.9]} 29... Rh5 {[%clk 0:01:26.2]} 30. Qc4 {[%clk 0:01:03]} 30...
Rxh4 {[%clk 0:01:20]} 31. Ke2 {[%clk 0:00:56.6]} 31... g5 {[%clk 0:01:12]} 32.
Rfd4 {[%clk 0:00:48.2]} 32... Qf5 {[%clk 0:01:09.8]} 33. Rf1 {[%clk 0:00:42.1]}
33... Rxe3+ {[%clk 0:00:59.2]} 34. fxe3 {[%clk 0:00:38.3]} 34... Qxf1+ {[%clk
0:01:00.1]} 35. Kxf1 {[%clk 0:00:37.6]} 35... Nxe3+ {[%clk 0:00:59]} 36. Ke2
{[%clk 0:00:22.7]} 36... Nxc4 {[%clk 0:00:59.9]} 37. Rxh4 {[%clk 0:00:15.4]}
37... gxh4 {[%clk 0:01:00.8]} 38. b3 {[%clk 0:00:15.7]} 38... Ne5 {[%clk
0:01:00.3]} 39. Nd4 {[%clk 0:00:16]} 39... c6 {[%clk 0:00:51.6]} 40. Nf5+ {[%clk
0:00:15.3]} 40... Kf7 {[%clk 0:00:51.3]} 41. Nxd6+ {[%clk 0:00:16.2]} 41... Ke6
{[%clk 0:00:48.9]} 42. Ne4 {[%clk 0:00:14]} 42... Kf5 {[%clk 0:00:48.6]} 43. Nd2
{[%clk 0:00:12.4]} 43... Kf4 {[%clk 0:00:47.6]} 44. b4 {[%clk 0:00:12.3]} 44...
f5 {[%clk 0:00:41.2]} 45. bxa5 {[%clk 0:00:11.1]} 45... bxa5 {[%clk 0:00:42.1]}
46. Nb3 {[%clk 0:00:11.4]} 46... Kg3 {[%clk 0:00:39.8]} 47. Kf1 {[%clk
0:00:10.9]} 47... f4 {[%clk 0:00:40]} 48. Nc5 {[%clk 0:00:07.7]} 48... Nc4
{[%clk 0:00:34.9]} 49. Ne4+ {[%clk 0:00:07.2]} 49... Kg4 {[%clk 0:00:34]} 50.
Nc5 {[%clk 0:00:05.6]} 50... f3 {[%clk 0:00:31]} 51. Kf2 {[%clk 0:00:04.9]}
51... fxg2 {[%clk 0:00:21.3]} 52. Kxg2 {[%clk 0:00:05.8]} 52... Nd2 {[%clk
0:00:20.1]} 53. Nb7 {[%clk 0:00:04.7]} 53... Nc4 {[%clk 0:00:16.7]} 54. Nc5
{[%clk 0:00:03.9]} 54... Kf4 {[%clk 0:00:16.3]} 55. Kh3 {[%clk 0:00:03.4]} 55...
Ke3 {[%clk 0:00:15.6]} 56. Kxh4 {[%clk 0:00:04.3]} 56... Kd2 {[%clk 0:00:15.2]}
57. Kg5 {[%clk 0:00:04.3]} 57... Kxc3 {[%clk 0:00:13.4]} 58. Kf4 {[%clk
0:00:04.5]} 58... Kb4 {[%clk 0:00:12.7]} 59. Na6+ {[%clk 0:00:04.7]} 59... Kxa4
{[%clk 0:00:12.5]} 60. Ke4 {[%clk 0:00:05]} 60... Kb5 {[%clk 0:00:12.9]} 61.
Nc7+ {[%clk 0:00:05.1]} 61... Kc5 {[%clk 0:00:12.1]} 62. Ne6+ {[%clk 0:00:04.9]}
62... Kb4 {[%clk 0:00:12.5]} 63. Nd8 {[%clk 0:00:04]} 63... c5 {[%clk
0:00:09.6]} 64. Kd3 {[%clk 0:00:03.9]} 64... Ne5+ {[%clk 0:00:08.6]} 65. Kc2
{[%clk 0:00:03.8]} 65... a4 {[%clk 0:00:09.1]} 66. Ne6 {[%clk 0:00:03.9]} 66...
Nc6 {[%clk 0:00:09.6]} 67. Nf4 {[%clk 0:00:04.8]} 67... Nd4+ {[%clk 0:00:09.8]}
68. Kb2 {[%clk 0:00:05.7]} 68... c4 {[%clk 0:00:10.1]} 69. Nd5+ {[%clk
0:00:04.8]} 69... Ka5 {[%clk 0:00:09.4]} 70. Nc3 {[%clk 0:00:05.7]} 70... Nb5
{[%clk 0:00:09.3]} 71. Nd5 {[%clk 0:00:04.1]} 71... a3+ {[%clk 0:00:08.4]} 72.
Ka2 {[%clk 0:00:04.4]} 72... Ka4 {[%clk 0:00:09.3]} 73. Ne3 {[%clk 0:00:04.6]}
73... Nc3+ {[%clk 0:00:09.1]} 74. Ka1 {[%clk 0:00:03.6]} 74... Kb4 {[%clk
0:00:09.5]} 75. Nxc4 {[%clk 0:00:03.7]} 75... a2 {[%clk 0:00:07.6]} 76. Nd2
{[%clk 0:00:03.2]} 76... Ka3 {[%clk 0:00:06.7]} 77. Nc4+ {[%clk 0:00:02.5]}
77... Ka4 {[%clk 0:00:07.2]} 0-1

[Event "*** SCC Grand Prix: Titled Tuesday Blitz"]
[Site "Chess.com"]
[Date "2020.07.21"]
[Round "9"]
[White "bgfbfbgfbgfgf"]
[Black "ljuks68"]
[Result "1-0"]
[WhiteElo "2640"]
[BlackElo "2453"]
[TimeControl "180+1"]
[EndTime "11:50:39 PDT"]
[Termination "bgfbfbgfbgfgf won on time"]

1. e4 {[%clk 0:03:00.9]} 1... e6 {[%clk 0:02:59.7]} 2. d4 {[%clk 0:03:00.7]}
2... d5 {[%clk 0:02:59.9]} 3. Nc3 {[%clk 0:03:01.2]} 3... Bb4 {[%clk 0:02:59.1]}
4. e5 {[%clk 0:03:01.7]} 4... Ne7 {[%clk 0:02:57.6]} 5. h4 {[%clk 0:03:00]} 5...
c5 {[%clk 0:02:53.5]} 6. a3 {[%clk 0:02:59.2]} 6... Bxc3+ {[%clk 0:02:53.2]} 7.
bxc3 {[%clk 0:03:00.1]} 7... Qc7 {[%clk 0:02:53.1]} 8. Nf3 {[%clk 0:02:53]} 8...
Nbc6 {[%clk 0:02:41.8]} 9. h5 {[%clk 0:02:51.9]} 9... h6 {[%clk 0:02:41.3]} 10.
Bd3 {[%clk 0:02:46.8]} 10... Bd7 {[%clk 0:02:37.1]} 11. a4 {[%clk 0:02:43.5]}
11... cxd4 {[%clk 0:02:28.6]} 12. cxd4 {[%clk 0:02:43.2]} 12... Nxd4 {[%clk
0:02:28.4]} 13. O-O {[%clk 0:02:36.5]} 13... Nxf3+ {[%clk 0:02:18.9]} 14. Qxf3
{[%clk 0:02:37.4]} 14... Qxe5 {[%clk 0:02:18.6]} 15. Ba3 {[%clk 0:02:33.9]}
15... Qf6 {[%clk 0:02:13.6]} 16. Qg3 {[%clk 0:02:30.9]} 16... O-O {[%clk
0:01:44.3]} 17. Qc7 {[%clk 0:02:29.9]} 17... Rfd8 {[%clk 0:01:42.1]} 18. Qxb7
{[%clk 0:02:28.1]} 18... Nc6 {[%clk 0:01:26.4]} 19. Bb5 {[%clk 0:02:04.9]} 19...
Rab8 {[%clk 0:00:58]} 20. Qc7 {[%clk 0:02:03.7]} 20... Rbc8 {[%clk 0:00:54.8]}
21. Qg3 {[%clk 0:02:00.5]} 21... Nd4 {[%clk 0:00:47.4]} 22. Bd3 {[%clk
0:00:45.1]} 22... e5 {[%clk 0:00:35.9]} 23. Bd6 {[%clk 0:00:43.3]} 23... Nc6
{[%clk 0:00:28]} 24. Ba3 {[%clk 0:00:36.4]} 24... e4 {[%clk 0:00:26.2]} 25. Ba6
{[%clk 0:00:34]} 25... Nd4 {[%clk 0:00:21]} 26. Bb2 {[%clk 0:00:15.8]} 26...
Rxc2 {[%clk 0:00:16.7]} 27. Bxd4 {[%clk 0:00:15.1]} 27... Qxd4 {[%clk
0:00:15.6]} 28. Rfd1 {[%clk 0:00:15.2]} 28... Qc5 {[%clk 0:00:13.3]} 29. Qh4
{[%clk 0:00:12.1]} 29... Re8 {[%clk 0:00:10.9]} 30. Bf1 {[%clk 0:00:10.5]} 30...
Bc6 {[%clk 0:00:09.3]} 31. Qf4 {[%clk 0:00:09.6]} 31... d4 {[%clk 0:00:09]} 32.
a5 {[%clk 0:00:07.8]} 32... e3 {[%clk 0:00:08.6]} 33. fxe3 {[%clk 0:00:06.5]}
33... dxe3 {[%clk 0:00:08.7]} 34. Kh2 {[%clk 0:00:06.3]} 34... e2 {[%clk
0:00:08.4]} 35. Re1 {[%clk 0:00:03.4]} 35... exf1=Q {[%clk 0:00:06.1]} 36. Rxe8+
{[%clk 0:00:03.3]} 36... Bxe8 {[%clk 0:00:06.1]} 37. Rxf1 {[%clk 0:00:04.2]}
37... Qc7 {[%clk 0:00:06.5]} 38. Kg3 {[%clk 0:00:03.3]} 38... Rc3+ {[%clk
0:00:05.8]} 39. Kh2 {[%clk 0:00:03.3]} 39... Qxf4+ {[%clk 0:00:04.9]} 40. Rxf4
{[%clk 0:00:04.2]} 40... Bc6 {[%clk 0:00:04.4]} 41. Rd4 {[%clk 0:00:04.4]} 41...
Rc2 {[%clk 0:00:04.1]} 42. Rd8+ {[%clk 0:00:05.3]} 42... Kh7 {[%clk 0:00:03.7]}
43. Rc8 {[%clk 0:00:06.2]} 43... a6 {[%clk 0:00:02.6]} 44. Rc7 {[%clk 0:00:06]}
44... Be4 {[%clk 0:00:02.3]} 45. Re7 {[%clk 0:00:05.8]} 45... Rxg2+ {[%clk
0:00:02]} 46. Kh3 {[%clk 0:00:06]} 46... Bf3 {[%clk 0:00:02.3]} 47. Ra7 {[%clk
0:00:06.9]} 47... Rf2 {[%clk 0:00:02.7]} 48. Kg3 {[%clk 0:00:06.6]} 48... Rf1
{[%clk 0:00:02.2]} 49. Rxa6 {[%clk 0:00:07.5]} 49... Bd5 {[%clk 0:00:01.6]} 50.
Ra7 {[%clk 0:00:08.4]} 50... Be6 {[%clk 0:00:02.1]} 51. a6 {[%clk 0:00:08.5]}
51... Ra1 {[%clk 0:00:02.8]} 52. Rc7 {[%clk 0:00:08.5]} 52... g6 {[%clk
0:00:03.2]} 53. Kf4 {[%clk 0:00:09.4]} 53... gxh5 {[%clk 0:00:03.4]} 54. Ke5
{[%clk 0:00:09.9]} 54... h4 {[%clk 0:00:03.7]} 55. Kf6 {[%clk 0:00:10.8]} 55...
Rxa6 {[%clk 0:00:03.9]} 56. Rc3 {[%clk 0:00:11.1]} 56... Bg4+ {[%clk 0:00:04.4]}
57. Ke5 {[%clk 0:00:11.2]} 57... Rg6 {[%clk 0:00:04.9]} 58. Kf4 {[%clk
0:00:11.6]} 58... h3 {[%clk 0:00:05.8]} 59. Rc2 {[%clk 0:00:11.3]} 59... Rf6+
{[%clk 0:00:06.1]} 60. Kxg4 {[%clk 0:00:11.3]} 60... Kg6 {[%clk 0:00:06.5]} 61.
Kxh3 {[%clk 0:00:11.7]} 61... Ra6 {[%clk 0:00:06.8]} 62. Rc5 {[%clk 0:00:12]}
62... Kh7 {[%clk 0:00:07.2]} 63. Kg4 {[%clk 0:00:12.5]} 63... Ra4+ {[%clk
0:00:07.5]} 64. Kh5 {[%clk 0:00:13]} 64... Kg7 {[%clk 0:00:07.8]} 65. Rf5 {[%clk
0:00:13.5]} 65... Re4 {[%clk 0:00:08]} 66. Rb5 {[%clk 0:00:13.8]} 66... Re6
{[%clk 0:00:08]} 67. Ra5 {[%clk 0:00:13.3]} 67... Rd6 {[%clk 0:00:08.4]} 68. Rb5
{[%clk 0:00:13.7]} 68... Rc6 {[%clk 0:00:08.8]} 69. Rd5 {[%clk 0:00:13.9]} 69...
Rc1 {[%clk 0:00:09.1]} 70. Rd6 {[%clk 0:00:12.9]} 70... Rh1+ {[%clk 0:00:09.6]}
71. Kg4 {[%clk 0:00:13.5]} 71... Rg1+ {[%clk 0:00:09.5]} 72. Kf5 {[%clk
0:00:12.4]} 72... Rg5+ {[%clk 0:00:08.8]} 73. Kf4 {[%clk 0:00:12.4]} 73... Rg1
{[%clk 0:00:08.2]} 74. Kf5 {[%clk 0:00:12.2]} 74... h5 {[%clk 0:00:08.4]} 75.
Ra6 {[%clk 0:00:12.2]} 75... Rg2 {[%clk 0:00:06.5]} 76. Ra4 {[%clk 0:00:11.1]}
76... Rg4 {[%clk 0:00:04.7]} 77. Ra5 {[%clk 0:00:08.9]} 77... Rg3 {[%clk
0:00:04]} 78. Ra4 {[%clk 0:00:09.1]} 78... Rh3 {[%clk 0:00:03.5]} 79. Kg5 {[%clk
0:00:08.2]} 79... Rg3+ {[%clk 0:00:02]} 80. Kxh5 {[%clk 0:00:08]} 80... Kf6
{[%clk 0:00:01.5]} 81. Kh4 {[%clk 0:00:06.8]} 1-0

[Event "*** SCC Grand Prix: Titled Tuesday Blitz"]
[Site "Chess.com"]
[Date "2020.07.21"]
[Round "9"]
[White "ShadowJolteon"]
[Black "FMOlexandrProhorov"]
[Result "1-0"]
[WhiteElo "2337"]
[BlackElo "2098"]
[TimeControl "180+1"]
[EndTime "11:50:41 PDT"]
[Termination "ShadowJolteon won by resignation"]

1. d4 {[%clk 0:03:00.9]} 1... g6 {[%clk 0:02:28.2]} 2. e4 {[%clk 0:02:57.8]}
2... c6 {[%clk 0:02:27.7]} 3. c4 {[%clk 0:02:57.4]} 3... Bg7 {[%clk 0:02:23.1]}
4. Nc3 {[%clk 0:02:56.8]} 4... d5 {[%clk 0:02:21.7]} 5. cxd5 {[%clk 0:02:55.7]}
5... cxd5 {[%clk 0:02:22]} 6. Nxd5 {[%clk 0:02:55.4]} 6... e6 {[%clk 0:02:22.2]}
7. Bb5+ {[%clk 0:02:53.2]} 7... Nc6 {[%clk 0:02:21.2]} 8. Nc3 {[%clk 0:02:45.5]}
8... Qxd4 {[%clk 0:02:19.9]} 9. Qe2 {[%clk 0:02:39.6]} 9... Bd7 {[%clk
0:02:12.5]} 10. Nf3 {[%clk 0:02:39.2]} 10... Qb4 {[%clk 0:02:09.2]} 11. O-O
{[%clk 0:02:19.3]} 11... Nf6 {[%clk 0:02:03.1]} 12. e5 {[%clk 0:02:13]} 12...
Ng4 {[%clk 0:01:57.9]} 13. a3 {[%clk 0:02:06.4]} 13... Qa5 {[%clk 0:01:53.9]}
14. b4 {[%clk 0:02:03.1]} 14... Qb6 {[%clk 0:01:50.2]} 15. Na4 {[%clk
0:01:45.7]} 15... Qc7 {[%clk 0:01:47.3]} 16. Bb2 {[%clk 0:01:31.5]} 16... a6
{[%clk 0:01:37.8]} 17. Bxc6 {[%clk 0:01:23.9]} 17... Bxc6 {[%clk 0:01:37.5]} 18.
Nc5 {[%clk 0:01:11.1]} 18... O-O {[%clk 0:01:33.9]} 19. Rac1 {[%clk 0:01:04.1]}
19... Qe7 {[%clk 0:01:27.9]} 20. Ne4 {[%clk 0:00:54.3]} 20... f6 {[%clk
0:01:06.3]} 21. exf6 {[%clk 0:00:47.9]} 21... Nxf6 {[%clk 0:01:06]} 22. Neg5
{[%clk 0:00:44.7]} 22... Rae8 {[%clk 0:00:56.6]} 23. Ne5 {[%clk 0:00:40]} 23...
Bd5 {[%clk 0:00:52.4]} 24. f4 {[%clk 0:00:32.1]} 24... Nh5 {[%clk 0:00:48.4]}
25. g3 {[%clk 0:00:29.6]} 25... Bf6 {[%clk 0:00:46.6]} 26. Ng4 {[%clk
0:00:20.5]} 26... Bg7 {[%clk 0:00:26.3]} 27. Be5 {[%clk 0:00:12.6]} 27... Nf6
{[%clk 0:00:24.4]} 28. Rc7 {[%clk 0:00:11.3]} 28... Qd8 {[%clk 0:00:21.8]} 29.
Rxg7+ {[%clk 0:00:08.6]} 29... Kxg7 {[%clk 0:00:21.3]} 30. Nxf6 {[%clk
0:00:09.5]} 30... Rxf6 {[%clk 0:00:21]} 31. Qb2 {[%clk 0:00:09.4]} 31... Rf8
{[%clk 0:00:19.5]} 32. Rc1 {[%clk 0:00:08.5]} 32... Bc6 {[%clk 0:00:18.4]} 33.
Nh3 {[%clk 0:00:05.6]} 33... h6 {[%clk 0:00:17.6]} 34. Nf2 {[%clk 0:00:05.6]}
34... Kh7 {[%clk 0:00:17.2]} 35. Bxf6 {[%clk 0:00:05.1]} 35... Qxf6 {[%clk
0:00:18.1]} 36. Qxf6 {[%clk 0:00:04]} 36... Rxf6 {[%clk 0:00:19]} 37. Ng4 {[%clk
0:00:04.4]} 37... Rf7 {[%clk 0:00:18.6]} 38. Ne5 {[%clk 0:00:05.3]} 38... Rc7
{[%clk 0:00:18.4]} 39. Nxc6 {[%clk 0:00:04.6]} 39... bxc6 {[%clk 0:00:18.4]} 40.
Rc5 {[%clk 0:00:04.2]} 40... Kg7 {[%clk 0:00:18.5]} 41. Kf2 {[%clk 0:00:04.5]}
41... Kf6 {[%clk 0:00:18.7]} 42. Ke3 {[%clk 0:00:05.4]} 42... Ra7 {[%clk
0:00:16.1]} 43. Rxc6 {[%clk 0:00:04.8]} 43... a5 {[%clk 0:00:17]} 44. b5 {[%clk
0:00:04.4]} 44... a4 {[%clk 0:00:17.5]} 45. Rc5 {[%clk 0:00:04.4]} 45... Rb7
{[%clk 0:00:16.5]} 46. Kd4 {[%clk 0:00:04.6]} 46... h5 {[%clk 0:00:16.4]} 47.
Kc4 {[%clk 0:00:04.5]} 47... Rd7 {[%clk 0:00:16.2]} 48. b6 {[%clk 0:00:04.4]}
48... Rd1 {[%clk 0:00:15.6]} 49. b7 {[%clk 0:00:03.9]} 49... Rb1 {[%clk
0:00:13]} 50. Ra5 {[%clk 0:00:03.5]} 50... Rxb7 {[%clk 0:00:12.2]} 51. Rxa4
{[%clk 0:00:03.5]} 51... Kf5 {[%clk 0:00:12.1]} 52. Ra5+ {[%clk 0:00:03.3]}
52... Kg4 {[%clk 0:00:12.4]} 53. Rg5+ {[%clk 0:00:03.8]} 53... Kh3 {[%clk
0:00:12.6]} 54. Rxg6 {[%clk 0:00:02.9]} 54... Kxh2 {[%clk 0:00:13.5]} 55. a4
{[%clk 0:00:03.2]} 55... Kh3 {[%clk 0:00:12.7]} 56. a5 {[%clk 0:00:03.3]} 56...
h4 {[%clk 0:00:13.1]} 57. gxh4 {[%clk 0:00:02.2]} 57... Kxh4 {[%clk 0:00:14]}
58. a6 {[%clk 0:00:01.8]} 58... Rb1 {[%clk 0:00:14.9]} 59. Rxe6 {[%clk
0:00:01.1]} 59... Ra1 {[%clk 0:00:15.8]} 60. Kb5 {[%clk 0:00:01.6]} 60... Kg4
{[%clk 0:00:15.9]} 61. f5 {[%clk 0:00:01.5]} 61... Kxf5 {[%clk 0:00:16.1]} 62.
Re7 {[%clk 0:00:02.4]} 62... Kf6 {[%clk 0:00:16.4]} 63. Rb7 {[%clk 0:00:02.9]}
63... Ke6 {[%clk 0:00:16.6]} 64. Kb6 {[%clk 0:00:03.8]} 64... Kd6 {[%clk
0:00:16.7]} 65. Rh7 {[%clk 0:00:03.5]} 65... Rb1+ {[%clk 0:00:16.8]} 66. Ka7
{[%clk 0:00:03.5]} 66... Rb2 {[%clk 0:00:16.7]} 67. Rh3 {[%clk 0:00:03.2]} 67...
Kc6 {[%clk 0:00:16.4]} 68. Ka8 {[%clk 0:00:03.2]} 68... Ra2 {[%clk 0:00:15.1]}
69. a7 {[%clk 0:00:03.4]} 69... Ra1 {[%clk 0:00:15.4]} 70. Rc3+ {[%clk
0:00:03.1]} 70... Kd7 {[%clk 0:00:14.7]} 71. Rc2 {[%clk 0:00:02.4]} 71... Rb1
{[%clk 0:00:15.3]} 72. Rc3 {[%clk 0:00:02]} 72... Rb2 {[%clk 0:00:15.4]} 73. Rc1
{[%clk 0:00:02]} 73... Rb6 {[%clk 0:00:15.3]} 74. Rd1+ {[%clk 0:00:02.3]} 74...
Kc7 {[%clk 0:00:15.1]} 75. Rh1 {[%clk 0:00:03.2]} 75... Rb2 {[%clk 0:00:14.5]}
76. Rh7+ {[%clk 0:00:03.5]} 76... Kc6 {[%clk 0:00:14.7]} 77. Rh6+ {[%clk
0:00:04]} 77... Kc7 {[%clk 0:00:14.3]} 78. Rh8 {[%clk 0:00:04.9]} 78... Kc6
{[%clk 0:00:14.7]} 79. Rb8 {[%clk 0:00:04.8]} 79... Ra2 {[%clk 0:00:14.2]} 80.
Rb7 {[%clk 0:00:05]} 80... Ra3 {[%clk 0:00:13.6]} 81. Kb8 {[%clk 0:00:05.1]}
81... Rh3 {[%clk 0:00:08.4]} 82. a8=Q {[%clk 0:00:06]} 82... Rh8+ {[%clk
0:00:06.9]} 83. Ka7 {[%clk 0:00:06.4]} 83... Rxa8+ {[%clk 0:00:07]} 84. Kxa8
{[%clk 0:00:07.3]} 84... Kc5 {[%clk 0:00:07.4]} 85. Ka7 {[%clk 0:00:07.5]} 85...
Kc6 {[%clk 0:00:07.4]} 86. Ka6 {[%clk 0:00:08.4]} 86... Kc5 {[%clk 0:00:07.3]}
87. Rb6 {[%clk 0:00:08.7]} 87... Kc4 {[%clk 0:00:07.3]} 88. Ka5 {[%clk
0:00:09.6]} 1-0